[Event "WSTCC-65 2020"]
[Site "Prague"]
[Date "2020.03.06"]
[Round "1.46"]
[White "Fiser, Jiri"]
[Black "Baum, Bernd"]
[Result "0-1"]
[ECO "B30"]
[WhiteElo "2134"]
[BlackElo "2249"]
[Annotator "ChessBase"]
[PlyCount "100"]
[EventDate "2020.03.06"]
[EventType "team-tourn"]
[EventCountry "CZE"]
[SourceTitle "playchess.com"]
[Source "ChessBase"]
[SourceQuality "1"]
[TimeControl "40/5400+30:1800+30"]

1. e4 {[%emt 0:00:00]} c5 {[%emt 0:00:00]} 2. Nf3 {[%emt 0:00:00]} Nc6 {[%emt 0:00:00]} 3. Bb5 {[%emt 0:00:06]} d6 {[%emt 0:01:04]} 4. O-O {[%emt 0:00:24]} Bd7 {[%emt 0:00:03]} 5. c3 {[%emt 0:01:03]} a6 {[%emt 0:05:55]} 6. Ba4 {[%emt 0:00:17]} Nf6 {[%emt 0:01:05]} 7. Re1 {[%emt 0:02:09]} e5 {[%emt 0:07:20]} 8. d4 {[%emt 0:03:10]} b5 {[%emt 0:00:41]} 9. Bc2 {[%emt 0:00:29]} Bg4 {[%emt 0:03:32]} 10. dxc5 {[%emt 0:06:40]} dxc5 {[%emt 0:00:18]} 11. Bg5 {[%emt 0:00:45]} Be7 {[%emt 0:01:14]} 12. Nbd2 {[%emt 0:02:26]} O-O {[%emt 0:00:43]} 13. h3 {[%emt 0:05:28]} Be6 {[%emt 0:00:46]} 14. Bxf6 {[%emt 0:04:09]} Bxf6 {[%emt 0:01:05]} 15. Nf1 {[%emt 0:00:05]} Qxd1 {[%emt 0:04:45]} 16. Rexd1 {[%emt 0:00:43]} Rfd8 {[%emt 0:00:15]} 17. Ne3 {[%emt 0:01:33]} Ne7 {[%emt 0:06:40]} 18. a3 {[%emt 0:07:39]} h5 {[%emt 0:07:00]} 19. Rxd8+ {[%emt 0:02:07]} Rxd8 {[%emt 0:00:03]} 20. Rd1 {[%emt 0:00:08]} Rxd1+ {[%emt 0:01:29]} 21. Bxd1 {[%emt 0:00:03]} Ng6 {[%emt 0:01:49]} 22. Be2 {[%emt 0:05:12]} Nf4 {[%emt 0:02:30]} 23. Bf1 {[%emt 0:00:03]} Kf8 {[%emt 0:09:03]} 24. Kh2 {[%emt 0:01:56]} c4 {[%emt 0:05:34]} 25. Ne1 {[%emt 0:02:00]} Bc8 {[%emt 0:01:17]} 26. g3 {[%emt 0:01:10]} Ne6 {[%emt 0:03:53]} 27. h4 {[%emt 0:15:31]} Nc5 {[%emt 0:04:48]} 28. f3 {[%emt 0:00:55]} g5 {[%emt 0:06:32]} 29. N1g2 {[%emt 0:11:38]} Bb7 {[%emt 0:02:57]} 30. Kg1 {[%emt 0:09:27]} gxh4 {[%emt 0:10:13]} 31. gxh4 {[%emt 0:00:02]} Bg7 {[%emt 0:00:48]} 32. Kf2 {[%emt 0:09:40]} Bh6 {[%emt 0:01:14]} 33. Ke1 {[%emt 0:02:34]} Na4 {[%emt 0:01:06]} 34. Kd1 {[%emt 0:01:15]} Nxb2+ {[%emt 0:00:41]} 35. Kc2 {[%emt 0:00:01]} Na4 {[%emt 0:00:23]} 36. Nf5 {[%emt 0:01:25]} Bg7 {[%emt 0:02:20]} 37. Ng3 {[%emt 0:00:25]} Bf6 {[%emt 0:01:10]} 38. Nxh5 {[%emt 0:00:10]} Be7 {[%emt 0:00:13]} 39. Ng3 {[%emt 0:01:12]} Bxa3 {[%emt 0:00:31]} 40. Ne3 {[%emt 0:00:00]} Bc5 {[%emt 0:00:00]} 41. Ngf5 {[%emt 0:00:32]} Bxe3 {[%emt 0:07:00]} 42. Nxe3 {[%emt 0:00:04]} Nc5 {[%emt 0:00:15]} 43. Ng4 {[%emt 0:01:09]} Nd7 {[%emt 0:01:00]} 44. Ne3 {[%emt 0:02:35]} Bc6 {[%emt 0:03:40]} 45. Bh3 {[%emt 0:01:35]} Nf6 {[%emt 0:01:20]} 46. Bc8 {[%emt 0:02:07]} a5 {[%emt 0:00:04]} 47. Ba6 {[%emt 0:00:40]} Ke8 {[%emt 0:08:22]} 48. Nf5 {[%emt 0:00:23]} Kd7 {[%emt 0:04:07]} 49. Ng7 {[%emt 0:00:33]} Kc7 {[%emt 0:01:50]} 50. h5 {[%emt 0:00:14]} Bd7 {[%emt 0:01:04]} 0-1

[Event "WSTCC-65 2020"]
[Site "Prague"]
[Date "2020.03.06"]
[Round "1.47"]
[White "Kierzek, Matthias"]
[Black "Pavlicek, Petr"]
[Result "1-0"]
[ECO "D85"]
[WhiteElo "2217"]
[BlackElo "1898"]
[Annotator "ChessBase"]
[PlyCount "79"]
[EventDate "2020.03.06"]
[EventType "team-tourn"]
[EventCountry "CZE"]
[SourceTitle "playchess.com"]
[Source "ChessBase"]
[SourceQuality "1"]
[TimeControl "40/5400+30:1800+30"]

1. d4 {[%emt 0:00:00]} Nf6 {[%emt 0:00:00]} 2. c4 {[%emt 0:00:00]} g6 {[%emt 0:00:00]} 3. Nc3 {[%emt 0:00:00]} d5 {[%emt 0:00:03]} 4. cxd5 {[%emt 0:00:00]} Nxd5 {[%emt 0:00:07]} 5. Bd2 {[%emt 0:00:04]} Bg7 {[%emt 0:02:09]} 6. e4 {[%emt 0:00:11]} Nb6 {[%emt 0:00:07]} 7. Be3 {[%emt 0:00:05]} O-O {[%emt 0:00:30]} 8. Be2 {[%emt 0:00:05]} Nc6 {[%emt 0:02:05]} 9. Nf3 {[%emt 0:00:12]} Bg4 {[%emt 0:01:11]} 10. d5 {[%emt 0:00:06]} Na5 {[%emt 0:03:24]} 11. Bd4 {[%emt 0:00:14]} Bxf3 {[%emt 0:09:24]} 12. gxf3 {[%emt 0:00:10]} e5 {[%emt 0:02:09]} 13. Bc5 {[%emt 0:08:59]} Nac4 {[%emt 0:03:37]} 14. Bxf8 {[%emt 0:02:51]} Bxf8 {[%emt 0:00:11]} 15. Qb3 {[%emt 0:05:17]} Nd6 {[%emt 0:00:35]} 16. h4 {[%emt 0:00:57]} h5 {[%emt 0:03:02]} 17. O-O-O {[%emt 0:03:43]} Bh6+ {[%emt 0:06:04]} 18. Kb1 {[%emt 0:00:25]} a6 {[%emt 0:02:31]} 19. Rdg1 {[%emt 0:05:06]} Kh7 {[%emt 0:04:05]} 20. Nd1 {[%emt 0:07:00]} Nd7 {[%emt 0:02:07]} 21. Ne3 {[%emt 0:00:29]} b5 {[%emt 0:01:01]} 22. Rc1 {[%emt 0:01:34]} Ra7 {[%emt 0:09:59]} 23. Rc6 {[%emt 0:02:40]} Bf4 {[%emt 0:05:27]} 24. Qc2 {[%emt 0:12:08]} Nb8 {[%emt 0:02:49]} 25. Rc3 {[%emt 0:00:24]} Nd7 {[%emt 0:03:12]} 26. Rc1 {[%emt 0:12:42]} Ne8 {[%emt 0:01:04]} 27. Rh1 {[%emt 0:02:49]} Nd6 {[%emt 0:00:22]} 28. Qd3 {[%emt 0:05:33]} Qb8 {[%emt 0:05:59]} 29. Rc6 {[%emt 0:07:09]} Nb6 {[%emt 0:04:22]} 30. Ng2 {[%emt 0:02:04]} Nbc4 {[%emt 0:07:57]} 31. Nxf4 {[%emt 0:00:45]} exf4 {[%emt 0:00:09]} 32. Qd4 {[%emt 0:00:40]} Qh8 {[%emt 0:03:47]} 33. Qxh8+ {[%emt 0:02:41]} Kxh8 {[%emt 0:00:13]} 34. Rc1 {[%emt 0:01:24]} Nd2+ {[%emt 0:03:38]} 35. Ka1 {[%emt 0:01:35]} N6c4 {[%emt 0:00:56]} 36. b3 {[%emt 0:00:45]} Ne5 {[%emt 0:00:30]} 37. Rxc7 {[%emt 0:00:51]} Ra8 {[%emt 0:01:37]} 38. Re7 {[%emt 0:02:03]} Ndxf3 {[%emt 0:02:26]} 39. Bxf3 {[%emt 0:00:48]} Nxf3 {[%emt 0:00:09]} 40. d6 {[%emt 0:00:00]} 1-0

[Event "WSTCC-65 2020"]
[Site "Prague"]
[Date "2020.03.06"]
[Round "1.48"]
[White "Slechta, Karel"]
[Black "Herbrechtsmeier, Christof"]
[Result "0-1"]
[ECO "B06"]
[WhiteElo "1860"]
[BlackElo "2177"]
[Annotator "ChessBase"]
[PlyCount "58"]
[EventDate "2020.03.06"]
[EventType "team-tourn"]
[EventCountry "CZE"]
[SourceTitle "playchess.com"]
[Source "ChessBase"]
[SourceQuality "1"]
[TimeControl "40/5400+30:1800+30"]

1. e4 g6 {[%emt 0:00:00]} 2. d4 {[%emt 0:00:10]} Bg7 {[%emt 0:00:00]} 3. Bc4 {[%emt 0:01:58]} d5 {[%emt 0:01:31]} 4. exd5 {[%emt 0:02:10]} Nf6 {[%emt 0:02:01]} 5. Nc3 {[%emt 0:04:10]} Nbd7 {[%emt 0:00:16]} 6. Nf3 {[%emt 0:07:00]} Nb6 {[%emt 0:02:05]} 7. Bb3 {[%emt 0:00:27]} Nbxd5 {[%emt 0:00:26]} 8. Nxd5 {[%emt 0:02:57]} Nxd5 {[%emt 0:00:09]} 9. O-O {[%emt 0:00:44]} O-O {[%emt 0:00:34]} 10. Re1 {[%emt 0:03:20]} c6 {[%emt 0:06:25]} 11. c3 {[%emt 0:02:17]} Qd6 {[%emt 0:08:09]} 12. Bg5 {[%emt 0:07:55]} Be6 {[%emt 0:02:21]} 13. Qd2 {[%emt 0:02:42]} f6 {[%emt 0:12:23]} 14. Bh6 {[%emt 0:09:27]} Bf7 {[%emt 0:02:02]} 15. Bxg7 {[%emt 0:00:31]} Kxg7 {[%emt 0:00:07]} 16. Rad1 {[%emt 0:01:42]} b5 {[%emt 0:05:44]} 17. Re4 {[%emt 0:06:07]} Rae8 {[%emt 0:09:55]} 18. Bc2 {[%emt 0:03:45]} Rh8 {[%emt 0:06:49]} 19. g3 {[%emt 0:10:22]} g5 {[%emt 0:04:47]} 20. Rde1 {[%emt 0:01:26]} h6 {[%emt 0:01:43]} 21. Bb3 {[%emt 0:01:56]} Qd7 {[%emt 0:02:57]} 22. Kg2 {[%emt 0:03:36]} Bg6 {[%emt 0:01:18]} 23. Re6 {[%emt 0:02:55]} Bf5 {[%emt 0:00:50]} 24. Bxd5 {[%emt 0:01:54]} cxd5 {[%emt 0:04:59]} 25. R6e3 {[%emt 0:00:19]} h5 {[%emt 0:02:57]} 26. Ng1 {[%emt 0:04:42]} h4 {[%emt 0:00:39]} 27. Qe2 {[%emt 0:01:00]} Kf8 {[%emt 0:00:28]} 28. gxh4 {[%emt 0:04:51]} gxh4 {[%emt 0:03:07]} 29. Nh3 {[%emt 0:02:06]} Rg8+ {[%emt 0:04:45]} 0-1

[Event "WSTCC-65 2020"]
[Site "Prague"]
[Date "2020.03.07"]
[Round "2.6"]
[White "Piza Volio, Eduardo"]
[Black "Maryasin, Boris"]
[Result "0-1"]
[ECO "A05"]
[WhiteElo "2255"]
[BlackElo "2305"]
[Annotator "RC"]
[PlyCount "28"]
[EventDate "2020.03.06"]
[EventType "team-tourn"]
[EventCountry "CZE"]
[SourceTitle "playchess.com"]
[Source "ChessBase"]
[SourceQuality "1"]
[TimeControl "40/5400+30:1800+30"]

1. Nf3 {[%emt 0:00:00]} Nf6 {[%emt 0:00:00]} 2. b3 {[%emt 0:00:00]} d6 {[%emt 0:00:29]} 3. Bb2 {[%emt 0:00:00]} e5 {[%emt 0:00:17]} 4. c4 {[%emt 0:04:25]} e4 {[%emt 0:03:18]} 5. Nd4 {[%emt 0:00:15]} d5 {[%emt 0:00:29]} 6. cxd5 {[%emt 0:01:37]} Qxd5 {[%emt 0:00:19]} 7. Nc2 {[%emt 0:01:54]} Nc6 {[%emt 0:01:14]} 8. Nc3 {[%emt 0:01:04]} Qh5 {[%emt 0:00:59]} 9. e3 {[%emt 0:03:14]} Bg4 {[%emt 0:01:42]} 10. Be2 {[%emt 0:00:29]} Ne5 {[%emt 0:00:28]} 11. O-O {[%emt 0:17:39]} Nf3+ {[%emt 0:01:52]} 12. gxf3 {[%emt 0:13:07]} exf3 {[%emt 0:00:26]} 13. Bb5+ {[%emt 0:19:11]} c6 {[%emt 0:00:28]} 14. Ba3 {[%emt 0:00:08]} Bxa3 {[%emt 0:00:40]} 0-1

[Event "WSTCC-65 2020"]
[Site "Prague"]
[Date "2020.03.07"]
[Round "2.24"]
[White "Buchal, Stephan"]
[Black "Walther, Hans-Wolfgang"]
[Result "1-0"]
[ECO "A15"]
[WhiteElo "2276"]
[BlackElo "2111"]
[Annotator "ChessBase"]
[PlyCount "104"]
[EventDate "2020.03.06"]
[EventType "team-tourn"]
[EventCountry "CZE"]
[SourceTitle "playchess.com"]
[Source "ChessBase"]
[SourceQuality "1"]
[TimeControl "40/5400+30:1800+30"]

1. c4 {[%emt 0:00:00]} Nf6 {[%emt 0:00:21]} 2. g3 {[%emt 0:00:00]} d5 {[%emt 0:03:54]} 3. cxd5 {[%emt 0:00:58]} Nxd5 {[%emt 0:00:19]} 4. Bg2 {[%emt 0:00:22]} c5 {[%emt 0:02:31]} 5. Nc3 {[%emt 0:01:06]} Nxc3 {[%emt 0:00:53]} 6. bxc3 {[%emt 0:00:10]} e5 {[%emt 0:02:48]} 7. Rb1 {[%emt 0:09:09]} Qc7 {[%emt 0:05:56]} 8. Nf3 {[%emt 0:09:14]} Nc6 {[%emt 0:03:30]} 9. O-O {[%emt 0:04:32]} Bd6 {[%emt 0:11:05]} 10. d4 {[%emt 0:03:21]} O-O {[%emt 0:05:16]} 11. d5 {[%emt 0:17:54]} Nd8 {[%emt 0:17:22]} 12. e4 {[%emt 0:03:45]} f6 {[%emt 0:08:18]} 13. c4 {[%emt 0:02:24]} Nf7 {[%emt 0:02:14]} 14. Ne1 {[%emt 0:04:35]} Bd7 {[%emt 0:05:22]} 15. Nd3 {[%emt 0:02:51]} g6 {[%emt 0:02:04]} 16. Bb2 {[%emt 0:11:14]} Rab8 {[%emt 0:05:26]} 17. Qd2 {[%emt 0:06:51]} b6 {[%emt 0:02:01]} 18. f4 {[%emt 0:02:11]} Rbe8 {[%emt 0:01:47]} 19. Rbe1 {[%emt 0:03:19]} a6 {[%emt 0:03:39]} 20. Kh1 {[%emt 0:04:11]} b5 {[%emt 0:01:12]} 21. Rc1 {[%emt 0:00:32]} b4 {[%emt 0:00:33]} 22. Rf2 {[%emt 0:00:47]} a5 {[%emt 0:00:40]} 23. Rcf1 {[%emt 0:01:24]} Kg7 {[%emt 0:04:36]} 24. Qc1 {[%emt 0:03:00]} Bc8 {[%emt 0:00:37]} 25. h4 {[%emt 0:01:21]} h5 {[%emt 0:01:34]} 26. Qd1 {[%emt 0:00:58]} Bg4 {[%emt 0:00:37]} 27. Bf3 {[%emt 0:01:26]} Nh6 {[%emt 0:00:48]} 28. fxe5 {[%emt 0:00:34]} fxe5 {[%emt 0:00:27]} 29. Bc1 {[%emt 0:03:09]} Bxf3+ {[%emt 0:02:48]} 30. Rxf3 {[%emt 0:00:02]} Ng4 {[%emt 0:00:18]} 31. Rxf8 {[%emt 0:01:10]} Rxf8 {[%emt 0:00:03]} 32. Rxf8 {[%emt 0:00:06]} Bxf8 {[%emt 0:00:53]} 33. Qa4 {[%emt 0:01:52]} Bd6 {[%emt 0:02:54]} 34. Bg5 {[%emt 0:00:32]} Kf7 {[%emt 0:01:18]} 35. Kg2 {[%emt 0:00:53]} Be7 {[%emt 0:00:35]} 36. Bd2 {[%emt 0:01:10]} Nf6 {[%emt 0:00:26]} 37. Nf2 {[%emt 0:00:05]} Nd7 {[%emt 0:00:36]} 38. Nh3 {[%emt 0:00:47]} Bd8 39. Qb5 {[%emt 0:00:56]} Be7 {[%emt 0:02:31]} 40. Bg5 {[%emt 0:00:00]} Bf8 {[%emt 0:00:00]} 41. Ng1 {[%emt 0:05:38]} Bd6 {[%emt 0:02:26]} 42. Nf3 {[%emt 0:01:54]} Ke8 {[%emt 0:01:25]} 43. Qa6 {[%emt 0:06:09]} Nb8 {[%emt 0:05:40]} 44. Qb5+ {[%emt 0:11:09]} Nd7 {[%emt 0:00:03]} 45. Kf2 {[%emt 0:01:58]} Qb6 {[%emt 0:02:17]} 46. Qa4 {[%emt 0:00:25]} Qc7 {[%emt 0:01:39]} 47. Ke2 {[%emt 0:01:43]} Kf7 {[%emt 0:00:39]} 48. Be3 {[%emt 0:01:03]} Be7 {[%emt 0:01:48]} 49. Qxd7 {[%emt 0:00:34]} Qxd7 {[%emt 0:00:14]} 50. Nxe5+ {[%emt 0:00:02]} Ke8 {[%emt 0:00:09]} 51. Nxd7 {[%emt 0:00:04]} Kxd7 {[%emt 0:00:05]} 52. e5 {[%emt 0:00:28]} a4 {[%emt 0:00:23]} 1-0

[Event "WSTCC-65 2020"]
[Site "Prague"]
[Date "2020.03.07"]
[Round "2.34"]
[White "Carlsson, Ingvar"]
[Black "Renman, Nils-Gustaf"]
[Result "1/2-1/2"]
[ECO "C11"]
[WhiteElo "2038"]
[BlackElo "2307"]
[Annotator "RC"]
[PlyCount "111"]
[EventDate "2020.03.06"]
[EventType "team-tourn"]
[EventCountry "CZE"]
[SourceTitle "playchess.com"]
[Source "ChessBase"]
[SourceQuality "1"]
[TimeControl "40/5400+30:1800+30"]

1. e4 {[%emt 0:00:00]} e6 {[%emt 0:00:00]} 2. d4 {[%emt 0:00:00]} d5 {[%emt 0:00:00]} 3. Nc3 {[%emt 0:00:00]} Nf6 {[%emt 0:00:03]} 4. e5 {[%emt 0:00:30]} Nfd7 {[%emt 0:00:04]} 5. f4 {[%emt 0:00:33]} c5 {[%emt 0:00:05]} 6. Nf3 {[%emt 0:00:09]} Nc6 {[%emt 0:00:08]} 7. Be3 {[%emt 0:01:19]} a6 {[%emt 0:00:42]} 8. Qd2 {[%emt 0:00:38]} b5 {[%emt 0:00:06]} 9. dxc5 {[%emt 0:12:21]} Bxc5 {[%emt 0:00:12]} 10. Bxc5 {[%emt 0:00:33]} Nxc5 {[%emt 0:00:11]} 11. Nd4 {[%emt 0:01:49]} Bb7 {[%emt 0:06:23]} 12. Qf2 {[%emt 0:11:06]} Qb6 {[%emt 0:14:52]} 13. Nb3 {[%emt 0:13:52]} Nd7 {[%emt 0:02:10]} 14. Qxb6 {[%emt 0:03:59]} Nxb6 {[%emt 0:00:05]} 15. Nc5 {[%emt 0:01:10]} O-O-O {[%emt 0:08:06]} 16. O-O-O {[%emt 0:02:58]} Nd7 {[%emt 0:05:15]} 17. Nxd7 {[%emt 0:14:29]} Rxd7 {[%emt 0:00:09]} 18. a3 {[%emt 0:07:48]} g5 {[%emt 0:12:56]} 19. fxg5 {[%emt 0:05:39]} Nxe5 {[%emt 0:00:10]} 20. Re1 {[%emt 0:01:24]} Nc4 {[%emt 0:08:27]} 21. Bd3 {[%emt 0:01:32]} Kc7 {[%emt 0:04:09]} 22. h4 {[%emt 0:04:21]} Kd6 {[%emt 0:00:52]} 23. Rhf1 {[%emt 0:03:47]} Ne5 {[%emt 0:11:50]} 24. Rf6 {[%emt 0:00:28]} Rc7 {[%emt 0:04:45]} 25. Kb1 {[%emt 0:01:50]} Ng4 {[%emt 0:00:37]} 26. Rf4 {[%emt 0:00:20]} h5 {[%emt 0:00:11]} 27. gxh6 {[%emt 0:01:18]} f5 {[%emt 0:01:05]} 28. a4 {[%emt 0:01:54]} bxa4 {[%emt 0:05:14]} 29. Rxa4 {[%emt 0:00:28]} Rc6 {[%emt 0:01:21]} 30. Rb4 {[%emt 0:00:56]} Bc8 {[%emt 0:00:49]} 31. Na4 {[%emt 0:03:17]} Rxh6 {[%emt 0:01:00]} 32. c4 {[%emt 0:01:38]} dxc4 {[%emt 0:01:42]} 33. Bxc4 {[%emt 0:00:42]} a5 {[%emt 0:00:47]} 34. Rb6 {[%emt 0:00:11]} Rxh4 {[%emt 0:02:18]} 35. Rxc6+ {[%emt 0:00:41]} Kxc6 {[%emt 0:00:02]} 36. Bxe6 {[%emt 0:00:13]} Bxe6 {[%emt 0:00:44]} 37. Rxe6+ {[%emt 0:00:01]} Kd5 {[%emt 0:00:36]} 38. Re2 {[%emt 0:00:44]} f4 {[%emt 0:01:44]} 39. Kc2 {[%emt 0:01:45]} Kd4 {[%emt 0:01:04]} 40. Rd2+ {[%emt 0:00:00]} Ke5 {[%emt 0:00:00]} 41. Kd3 {[%emt 0:08:41]} Ne3 {[%emt 0:15:25]} 42. g3 {[%emt 0:07:23]} fxg3 {[%emt 0:01:02]} 43. Kxe3 {[%emt 0:01:33]} Rxa4 {[%emt 0:00:22]} 44. Kf3 {[%emt 0:00:33]} Rd4 {[%emt 0:00:14]} 45. Re2+ {[%emt 0:01:59]} Kd5 {[%emt 0:00:14]} 46. Kxg3 {[%emt 0:01:16]} Kc4 {[%emt 0:01:52]} 47. Kf3 {[%emt 0:03:00]} Kb3 {[%emt 0:04:34]} 48. Ke3 {[%emt 0:03:10]} Rd1 {[%emt 0:01:57]} 49. Rh2 {[%emt 0:00:45]} a4 {[%emt 0:01:21]} 50. Rf2 {[%emt 0:02:24]} Rb1 {[%emt 0:05:36]} 51. Kd3 {[%emt 0:00:18]} Rxb2 {[%emt 0:00:06]} 52. Rf8 {[%emt 0:01:03]} a3 {[%emt 0:01:41]} 53. Ra8 {[%emt 0:03:49]} Ka2 {[%emt 0:06:36]} 54. Kc3 {[%emt 0:01:17]} Rb7 {[%emt 0:00:26]} 55. Kc2 {[%emt 0:00:40]} Rc7+ {[%emt 0:00:09]} 56. Kd2 {[%emt 0:00:02]} 1/2-1/2

[Event "WSTCC-65 2020"]
[Site "Prague"]
[Date "2020.03.07"]
[Round "2.45"]
[White "Huss, Andreas"]
[Black "Stebbings, Anthony J"]
[Result "1/2-1/2"]
[ECO "E11"]
[WhiteElo "2253"]
[BlackElo "2313"]
[Annotator "RC"]
[PlyCount "35"]
[EventDate "2020.03.06"]
[EventType "team-tourn"]
[EventCountry "CZE"]
[SourceTitle "playchess.com"]
[Source "ChessBase"]
[SourceQuality "1"]
[TimeControl "40/5400+30:1800+30"]

1. d4 {[%emt 0:00:00]} Nf6 {[%emt 0:00:00]} 2. Nf3 {[%emt 0:00:00]} e6 {[%emt 0:00:00]} 3. c4 {[%emt 0:00:00]} Bb4+ {[%emt 0:00:00]} 4. Nbd2 {[%emt 0:00:08]} a5 {[%emt 0:00:00]} 5. e3 {[%emt 0:00:53]} O-O {[%emt 0:02:42]} 6. Bd3 {[%emt 0:00:27]} d5 {[%emt 0:01:03]} 7. O-O {[%emt 0:00:43]} b6 {[%emt 0:02:01]} 8. Qc2 {[%emt 0:02:31]} Bb7 {[%emt 0:03:33]} 9. a3 {[%emt 0:04:09]} Be7 {[%emt 0:06:32]} 10. e4 {[%emt 0:03:47]} dxe4 {[%emt 0:00:40]} 11. Nxe4 {[%emt 0:00:10]} Nbd7 {[%emt 0:00:47]} 12. Rd1 {[%emt 0:07:21]} Nxe4 13. Bxe4 {[%emt 0:00:29]} Bxe4 {[%emt 0:18:09]} 14. Qxe4 {[%emt 0:00:11]} Nf6 {[%emt 0:05:48]} 15. Qe2 {[%emt 0:05:23]} Qc8 {[%emt 0:08:16]} 16. Bf4 {[%emt 0:01:10]} Re8 {[%emt 0:01:18]} 17. Qc2 {[%emt 0:13:40]} Qb7 {[%emt 0:00:45]} 18. Be5 {[%emt 0:10:30]} 1/2-1/2

[Event "WSTCC-65 2020"]
[Site "Prague"]
[Date "2020.03.07"]
[Round "2.46"]
[White "Page, Mark E"]
[Black "Hohler, Peter"]
[Result "1/2-1/2"]
[ECO "C77"]
[WhiteElo "2135"]
[BlackElo "2057"]
[Annotator "ChessBase"]
[PlyCount "115"]
[EventDate "2020.03.06"]
[EventType "team-tourn"]
[EventCountry "CZE"]
[SourceTitle "playchess.com"]
[Source "ChessBase"]
[SourceQuality "1"]
[TimeControl "40/5400+30:1800+30"]

1. e4 {[%emt 0:00:00]} e5 {[%emt 0:00:00]} 2. Nf3 {[%emt 0:00:00]} Nc6 {[%emt 0:00:00]} 3. Bb5 {[%emt 0:00:00]} a6 {[%emt 0:00:03]} 4. Ba4 {[%emt 0:00:00]} Nf6 {[%emt 0:00:17]} 5. d4 {[%emt 0:00:33]} exd4 {[%emt 0:00:26]} 6. O-O {[%emt 0:00:10]} Be7 {[%emt 0:00:38]} 7. Re1 {[%emt 0:01:09]} b5 {[%emt 0:01:53]} 8. Bb3 {[%emt 0:00:41]} d6 {[%emt 0:01:34]} 9. Bd5 {[%emt 0:01:01]} Bb7 {[%emt 0:02:19]} 10. Bxc6+ {[%emt 0:08:22]} Bxc6 {[%emt 0:00:03]} 11. Nxd4 {[%emt 0:00:06]} Bd7 {[%emt 0:12:50]} 12. Nc3 {[%emt 0:03:18]} O-O {[%emt 0:00:29]} 13. Nf5 {[%emt 0:05:02]} Bxf5 {[%emt 0:02:00]} 14. exf5 {[%emt 0:00:16]} d5 {[%emt 0:01:14]} 15. Bg5 {[%emt 0:08:48]} c6 {[%emt 0:10:08]} 16. a4 {[%emt 0:06:42]} b4 {[%emt 0:03:56]} 17. Ne2 {[%emt 0:02:16]} Re8 {[%emt 0:07:28]} 18. Ng3 {[%emt 0:11:07]} h6 {[%emt 0:07:04]} 19. Bh4 {[%emt 0:03:32]} Ne4 {[%emt 0:19:43]} 20. Bxe7 {[%emt 0:05:06]} Rxe7 {[%emt 0:00:02]} 21. Nxe4 {[%emt 0:02:10]} Rxe4 {[%emt 0:00:22]} 22. Rxe4 {[%emt 0:19:54]} dxe4 {[%emt 0:00:02]} 23. Qg4 {[%emt 0:00:27]} Qe7 {[%emt 0:10:44]} 24. h3 {[%emt 0:08:03]} Re8 {[%emt 0:05:13]} 25. Re1 {[%emt 0:02:10]} c5 {[%emt 0:04:47]} 26. Qf4 {[%emt 0:01:30]} Qf6 {[%emt 0:01:20]} 27. b3 {[%emt 0:00:37]} Qd4 {[%emt 0:01:48]} 28. Kh2 {[%emt 0:03:28]} Kf8 {[%emt 0:02:19]} 29. Re3 {[%emt 0:00:59]} Qd5 {[%emt 0:01:04]} 30. g4 {[%emt 0:01:53]} f6 {[%emt 0:01:01]} 31. Re2 {[%emt 0:01:36]} Qb7 {[%emt 0:02:26]} 32. Qd6+ {[%emt 0:02:16]} Qe7 {[%emt 0:00:51]} 33. Qxe7+ {[%emt 0:00:42]} Rxe7 {[%emt 0:00:01]} 34. Kg3 {[%emt 0:00:09]} Kf7 {[%emt 0:01:05]} 35. Kf4 {[%emt 0:00:23]} Rd7 {[%emt 0:00:18]} 36. Kxe4 {[%emt 0:01:03]} Re7+ {[%emt 0:00:24]} 37. Kd3 {[%emt 0:00:11]} Rxe2 {[%emt 0:00:08]} 38. Kxe2 {[%emt 0:00:01]} Ke7 {[%emt 0:00:05]} 39. Ke3 {[%emt 0:02:00]} Kd6 {[%emt 0:00:08]} 40. Ke4 {[%emt 0:00:00]} Kc6 {[%emt 0:00:00]} 41. f4 {[%emt 0:01:27]} Kd6 {[%emt 0:01:03]} 42. Kd3 {[%emt 0:05:01]} Kd5 {[%emt 0:05:55]} 43. c3 {[%emt 0:03:40]} bxc3 {[%emt 0:04:13]} 44. Kxc3 {[%emt 0:00:11]} Kd6 {[%emt 0:02:47]} 45. Kc4 {[%emt 0:16:34]} Kc6 {[%emt 0:00:08]} 46. b4 {[%emt 0:04:20]} cxb4 {[%emt 0:00:07]} 47. Kxb4 {[%emt 0:00:04]} Kb6 {[%emt 0:00:26]} 48. h4 {[%emt 0:01:24]} Kc6 {[%emt 0:00:47]} 49. Kc4 {[%emt 0:01:04]} Kd6 {[%emt 0:00:05]} 50. Kb4 {[%emt 0:00:16]} Kc6 {[%emt 0:00:02]} 51. Ka5 {[%emt 0:00:41]} Kb7 {[%emt 0:00:02]} 52. g5 {[%emt 0:01:12]} h5 {[%emt 0:03:13]} 53. Kb4 {[%emt 0:00:19]} Kb6 {[%emt 0:01:02]} 54. Ka3 {[%emt 0:01:50]} Kc5 {[%emt 0:01:46]} 55. Kb3 {[%emt 0:00:09]} a5 {[%emt 0:03:58]} 56. Kc3 {[%emt 0:00:12]} Kd5 {[%emt 0:00:01]} 57. Kd3 {[%emt 0:00:41]} Kc5 {[%emt 0:00:01]} 58. Kc3 1/2-1/2